[Event "*** Titled Tuesday Blitz"]
[Site "Chess.com"]
[Date "2021.02.16"]
[Round "10"]
[White "Hangar-18"]
[Black "Rodchenkov_Vitalij"]
[Result "1-0"]
[WhiteElo "2391"]
[BlackElo "2532"]
[TimeControl "180+1"]
[EndTime "11:59:08 PST"]
[Termination "Hangar-18 won by resignation"]

1. c4 {[%clk 0:03:00.9]} 1... c5 {[%clk 0:02:58.5]} 2. Nc3 {[%clk 0:03:00.4]}
2... Nc6 {[%clk 0:02:58.9]} 3. Nf3 {[%clk 0:03:00.8]} 3... g6 {[%clk 0:02:59.2]}
4. g3 {[%clk 0:02:59.2]} 4... Bg7 {[%clk 0:02:59.4]} 5. Bg2 {[%clk 0:02:59.7]}
5... e5 {[%clk 0:02:59.6]} 6. a3 {[%clk 0:02:59]} 6... Nge7 {[%clk 0:02:59.8]}
7. b4 {[%clk 0:02:47.9]} 7... cxb4 {[%clk 0:02:58.8]} 8. axb4 {[%clk 0:02:48.8]}
8... Nxb4 {[%clk 0:02:31.3]} 9. Ba3 {[%clk 0:02:47.7]} 9... Nec6 {[%clk
0:02:26.4]} 10. Qa4 {[%clk 0:02:33.7]} 10... a5 {[%clk 0:02:10.3]} 11. O-O
{[%clk 0:01:56.2]} 11... O-O {[%clk 0:02:10.1]} 12. Nd5 {[%clk 0:01:56.5]} 12...
Nxd5 {[%clk 0:01:58.7]} 13. cxd5 {[%clk 0:01:55.6]} 13... Ne7 {[%clk 0:01:56.4]}
14. Ng5 {[%clk 0:01:35.3]} 14... f5 {[%clk 0:01:35.2]} 15. d6 {[%clk 0:01:26.9]}
15... Nc6 {[%clk 0:01:30.9]} 16. Qc4+ {[%clk 0:01:26.4]} 16... Kh8 {[%clk
0:01:27.6]} 17. Nf7+ {[%clk 0:01:26.3]} 17... Rxf7 {[%clk 0:01:26.5]} 18. Qxf7
{[%clk 0:01:27.2]} 18... Qf8 {[%clk 0:01:23.2]} 19. Qxf8+ {[%clk 0:01:22.3]}
19... Bxf8 {[%clk 0:01:23]} 20. e3 {[%clk 0:01:17.1]} 20... b5 {[%clk
0:01:21.3]} 21. Bc5 {[%clk 0:01:15.6]} 21... b4 {[%clk 0:01:15.2]} 22. Rfb1
{[%clk 0:01:09.3]} 22... Bb7 {[%clk 0:01:12.6]} 23. Bd5 {[%clk 0:01:03.1]} 23...
Bg7 {[%clk 0:01:11.6]} 24. Bb6 {[%clk 0:00:55.4]} 24... h5 {[%clk 0:01:09.9]}
25. Bxc6 {[%clk 0:00:52.7]} 25... Bxc6 {[%clk 0:01:09.6]} 26. Rxa5 {[%clk
0:00:52.6]} 26... Re8 {[%clk 0:00:54.2]} 27. Rxb4 {[%clk 0:00:51.1]} 27... Kh7
{[%clk 0:00:53.8]} 28. Bc5 {[%clk 0:00:47.7]} 28... f4 {[%clk 0:00:50.3]} 29.
Ra2 {[%clk 0:00:41.7]} 29... g5 {[%clk 0:00:47.8]} 30. Rab2 {[%clk 0:00:41.3]}
30... Re6 {[%clk 0:00:46.5]} 31. e4 {[%clk 0:00:35.5]} 31... f3 {[%clk
0:00:41.8]} 32. d3 {[%clk 0:00:34.9]} 32... Rg6 {[%clk 0:00:38.3]} 33. Rb8
{[%clk 0:00:33.7]} 33... g4 {[%clk 0:00:24.8]} 34. Rc8 {[%clk 0:00:33.6]} 34...
Ba4 {[%clk 0:00:22.2]} 35. Rbb8 {[%clk 0:00:32.7]} 35... Bc2 {[%clk 0:00:20.1]}
36. Rb7 {[%clk 0:00:29.4]} 36... Ba4 {[%clk 0:00:17.6]} 37. Rcc7 {[%clk
0:00:29.2]} 37... Rf6 {[%clk 0:00:14.2]} 38. Ra7 {[%clk 0:00:29.3]} 38... Bb5
{[%clk 0:00:14.2]} 39. Rab7 {[%clk 0:00:29.2]} 39... Ba4 {[%clk 0:00:14.1]} 40.
Rb4 {[%clk 0:00:29.4]} 40... Bc6 {[%clk 0:00:14.2]} 41. Rxc6 {[%clk 0:00:28.9]}
41... dxc6 {[%clk 0:00:14.5]} 42. d7 {[%clk 0:00:29.4]} 42... Rf8 {[%clk
0:00:14.9]} 43. Bxf8 {[%clk 0:00:29.1]} 1-0

[Event "*** Titled Tuesday Blitz"]
[Site "Chess.com"]
[Date "2021.02.16"]
[Round "10"]
[White "Tashik"]
[Black "FredyMatsuura"]
[Result "1-0"]
[WhiteElo "2451"]
[BlackElo "2314"]
[TimeControl "180+1"]
[EndTime "11:59:09 PST"]
[Termination "Tashik won by resignation"]

1. c4 {[%clk 0:03:00.9]} 1... e6 {[%clk 0:02:58.7]} 2. Nc3 {[%clk 0:03:00.6]}
2... d5 {[%clk 0:02:58.3]} 3. d4 {[%clk 0:03:01.1]} 3... Nf6 {[%clk 0:02:58.1]}
4. Nf3 {[%clk 0:03:01.7]} 4... Be7 {[%clk 0:02:58]} 5. Bg5 {[%clk 0:03:00.6]}
5... h6 {[%clk 0:02:54.8]} 6. Bh4 {[%clk 0:03:00]} 6... Ne4 {[%clk 0:02:54.1]}
7. Bxe7 {[%clk 0:02:54.1]} 7... Qxe7 {[%clk 0:02:53]} 8. Nxe4 {[%clk 0:02:51.3]}
8... dxe4 {[%clk 0:02:51.3]} 9. Nd2 {[%clk 0:02:49.7]} 9... f5 {[%clk
0:02:47.1]} 10. e3 {[%clk 0:02:49.7]} 10... O-O {[%clk 0:02:45.2]} 11. Be2
{[%clk 0:02:49.8]} 11... Nd7 {[%clk 0:02:40.7]} 12. O-O {[%clk 0:02:48.9]} 12...
e5 {[%clk 0:02:32.9]} 13. d5 {[%clk 0:02:36.4]} 13... Nf6 {[%clk 0:02:31.3]} 14.
Qb3 {[%clk 0:02:33]} 14... f4 {[%clk 0:02:21.5]} 15. f3 {[%clk 0:02:20.7]} 15...
exf3 {[%clk 0:01:56.3]} 16. Nxf3 {[%clk 0:02:20.5]} 16... Ng4 {[%clk 0:01:40.4]}
17. exf4 {[%clk 0:02:15.7]} 17... Qc5+ {[%clk 0:01:36.3]} 18. Kh1 {[%clk
0:02:14]} 18... Nf2+ {[%clk 0:01:36.8]} 19. Rxf2 {[%clk 0:02:13.2]} 19... Qxf2
{[%clk 0:01:37.3]} 20. Bd3 {[%clk 0:01:59.7]} 20... exf4 {[%clk 0:01:33.1]} 21.
c5 {[%clk 0:01:57.2]} 21... Qxc5 {[%clk 0:01:25.2]} 22. d6+ {[%clk 0:01:31.6]}
22... Kh8 {[%clk 0:01:24.3]} 23. Nh4 {[%clk 0:01:31.6]} 23... Rf6 {[%clk
0:01:16.6]} 24. dxc7 {[%clk 0:01:20.5]} 24... Be6 {[%clk 0:01:00]} 25. Qxb7
{[%clk 0:01:17.8]} 25... Rc8 {[%clk 0:00:59.7]} 26. Qe4 {[%clk 0:01:13.2]} 26...
Kg8 {[%clk 0:00:53.1]} 27. Qh7+ {[%clk 0:01:07.3]} 27... Kf7 {[%clk 0:00:53]}
28. Bg6+ {[%clk 0:01:07]} 28... Kf8 {[%clk 0:00:53]} 29. Qh8+ {[%clk 0:01:04]}
29... Bg8 {[%clk 0:00:38.3]} 30. Bh7 {[%clk 0:00:44.9]} 30... Qc4 {[%clk
0:00:17.8]} 31. Ng6+ {[%clk 0:00:18.7]} 31... Rxg6 {[%clk 0:00:17.5]} 32. Bxg6
{[%clk 0:00:19.6]} 32... Qxc7 {[%clk 0:00:17]} 33. Rf1 {[%clk 0:00:14.7]} 33...
Qc1 {[%clk 0:00:14.8]} 34. Bd3 {[%clk 0:00:07.9]} 34... Qc2 {[%clk 0:00:15.7]}
35. Bxc2 {[%clk 0:00:07.5]} 1-0

[Event "*** Titled Tuesday Blitz"]
[Site "Chess.com"]
[Date "2021.02.16"]
[Round "10"]
[White "verdest"]
[Black "Rsnr"]
[Result "0-1"]
[WhiteElo "2498"]
[BlackElo "2755"]
[TimeControl "180+1"]
[EndTime "11:59:11 PST"]
[Termination "Rsnr won by resignation"]

1. d4 {[%clk 0:02:59.4]} 1... d5 {[%clk 0:02:59.6]} 2. c4 {[%clk 0:02:58.4]}
2... c6 {[%clk 0:03:00.2]} 3. Nf3 {[%clk 0:02:58.4]} 3... Nf6 {[%clk 0:03:00.5]}
4. Qb3 {[%clk 0:02:58.8]} 4... g6 {[%clk 0:02:42.9]} 5. Nc3 {[%clk 0:02:57.3]}
5... Bg7 {[%clk 0:02:42.9]} 6. e3 {[%clk 0:02:57.3]} 6... O-O {[%clk 0:02:42.9]}
7. Be2 {[%clk 0:02:55.6]} 7... Qb6 {[%clk 0:02:40.8]} 8. Qd1 {[%clk 0:02:46.3]}
8... Bg4 {[%clk 0:02:33.9]} 9. cxd5 {[%clk 0:02:38.1]} 9... cxd5 {[%clk
0:02:33.9]} 10. O-O {[%clk 0:02:38.1]} 10... Nc6 {[%clk 0:02:33.9]} 11. b3
{[%clk 0:02:38]} 11... Rfc8 {[%clk 0:02:24]} 12. Na4 {[%clk 0:02:37.3]} 12...
Qd8 {[%clk 0:02:24.2]} 13. Ba3 {[%clk 0:02:36.6]} 13... Ne4 {[%clk 0:02:19.6]}
14. Rc1 {[%clk 0:02:35]} 14... Rc7 {[%clk 0:02:12.6]} 15. h3 {[%clk 0:02:34.6]}
15... Bxf3 {[%clk 0:02:11]} 16. Bxf3 {[%clk 0:02:35.5]} 16... b5 {[%clk
0:01:25.6]} 17. Nc5 {[%clk 0:02:31.1]} 17... b4 {[%clk 0:01:25.7]} 18. Bb2
{[%clk 0:02:18]} 18... Nxc5 {[%clk 0:00:59.3]} 19. Rxc5 {[%clk 0:02:18.9]} 19...
e6 {[%clk 0:01:00.1]} 20. Qe2 {[%clk 0:02:17.6]} 20... Ne5 {[%clk 0:00:39.2]}
21. Rfc1 {[%clk 0:02:13]} 21... Nxf3+ {[%clk 0:00:39.3]} 22. Qxf3 {[%clk
0:02:12.2]} 22... Rxc5 {[%clk 0:00:40]} 23. Rxc5 {[%clk 0:02:12.6]} 23... Rc8
{[%clk 0:00:40.8]} 24. Qe2 {[%clk 0:02:08.9]} 24... Bf8 {[%clk 0:00:30.4]} 25.
Rc2 {[%clk 0:01:59.9]} 25... Bd6 {[%clk 0:00:30.3]} 26. Qd1 {[%clk 0:01:58.1]}
26... Rc7 {[%clk 0:00:19.7]} 27. Qc1 {[%clk 0:01:56.8]} 27... h5 {[%clk
0:00:20]} 28. Rxc7 {[%clk 0:01:56.5]} 28... Bxc7 {[%clk 0:00:19]} 29. a3 {[%clk
0:01:55.7]} 29... Qd6 {[%clk 0:00:17.4]} 30. axb4 {[%clk 0:01:50.1]} 30... Qh2+
{[%clk 0:00:17]} 31. Kf1 {[%clk 0:01:50.3]} 31... Bd6 {[%clk 0:00:11.8]} 32. Qc6
{[%clk 0:01:45.4]} 32... Bxb4 {[%clk 0:00:07.5]} 33. Qb5 {[%clk 0:01:22.9]}
33... a5 {[%clk 0:00:05.4]} 34. Qe8+ {[%clk 0:00:37]} 34... Kg7 {[%clk
0:00:05.2]} 0-1

[Event "*** Titled Tuesday Blitz"]
[Site "Chess.com"]
[Date "2021.02.16"]
[Round "10"]
[White "vladgoncharov"]
[Black "Kaslask"]
[Result "1-0"]
[WhiteElo "2465"]
[BlackElo "2251"]
[TimeControl "180+1"]
[EndTime "11:59:11 PST"]
[Termination "vladgoncharov won on time"]

1. d4 {[%clk 0:03:00.9]} 1... Nf6 {[%clk 0:02:59.7]} 2. c4 {[%clk 0:02:59.6]}
2... g6 {[%clk 0:02:59.7]} 3. Nc3 {[%clk 0:02:58.6]} 3... Bg7 {[%clk 0:02:59.9]}
4. e4 {[%clk 0:02:57.6]} 4... O-O {[%clk 0:03:00.2]} 5. Nf3 {[%clk 0:02:58]}
5... d6 {[%clk 0:03:00.2]} 6. Be2 {[%clk 0:02:58.6]} 6... e5 {[%clk 0:02:59.6]}
7. O-O {[%clk 0:02:59.1]} 7... Nc6 {[%clk 0:02:55.9]} 8. d5 {[%clk 0:02:58.8]}
8... Ne7 {[%clk 0:02:55.9]} 9. Ne1 {[%clk 0:02:59.5]} 9... Nd7 {[%clk
0:02:52.1]} 10. Be3 {[%clk 0:03:00.1]} 10... f5 {[%clk 0:02:51.1]} 11. f3 {[%clk
0:03:00.8]} 11... f4 {[%clk 0:02:48.8]} 12. Bf2 {[%clk 0:03:01.3]} 12... g5
{[%clk 0:02:48.7]} 13. Rc1 {[%clk 0:02:59.9]} 13... b6 {[%clk 0:02:32]} 14. b4
{[%clk 0:02:57.9]} 14... a5 {[%clk 0:02:31.8]} 15. a3 {[%clk 0:02:56.8]} 15...
axb4 {[%clk 0:02:30.2]} 16. axb4 {[%clk 0:02:56.5]} 16... Ng6 {[%clk 0:02:26]}
17. Nd3 {[%clk 0:02:54.9]} 17... Rf7 {[%clk 0:02:15.8]} 18. c5 {[%clk
0:02:49.6]} 18... bxc5 {[%clk 0:02:15]} 19. bxc5 {[%clk 0:02:49.6]} 19... Bf8
{[%clk 0:02:13.1]} 20. c6 {[%clk 0:02:32]} 20... Nf6 {[%clk 0:02:12.1]} 21. Ra1
{[%clk 0:02:28.2]} 21... Rxa1 {[%clk 0:02:02.2]} 22. Qxa1 {[%clk 0:02:28.5]}
22... g4 {[%clk 0:02:01.9]} 23. Rb1 {[%clk 0:02:18.9]} 23... g3 {[%clk
0:02:01.4]} 24. hxg3 {[%clk 0:02:17.8]} 24... fxg3 {[%clk 0:02:01.3]} 25. Bxg3
{[%clk 0:02:17.9]} 25... Nh5 {[%clk 0:02:00.7]} 26. Bh2 {[%clk 0:02:10.3]} 26...
Bh6 {[%clk 0:01:56.2]} 27. Rb8 {[%clk 0:02:07.4]} 27... Be3+ {[%clk 0:01:55.2]}
28. Kf1 {[%clk 0:02:06.1]} 28... Nf8 {[%clk 0:01:13.2]} 29. Nd1 {[%clk 0:01:28]}
29... Bd4 {[%clk 0:01:12.2]} 30. Qa8 {[%clk 0:01:26.2]} 30... Qh4 {[%clk
0:01:10.8]} 31. Rxc8 {[%clk 0:01:24.7]} 31... Ng3+ {[%clk 0:01:10.8]} 32. Ke1
{[%clk 0:01:17.9]} 32... Nxe4+ {[%clk 0:01:10.2]} 33. N1f2 {[%clk 0:01:17.1]}
33... Bxf2+ {[%clk 0:01:08.3]} 34. Kd1 {[%clk 0:01:08.1]} 34... Nc3+ {[%clk
0:01:07.6]} 35. Kd2 {[%clk 0:01:06.3]} 35... Nxe2 {[%clk 0:00:59.4]} 36. Kxe2
{[%clk 0:01:05]} 36... Bd4 {[%clk 0:00:52.9]} 37. Qb7 {[%clk 0:00:18.7]} 1-0

[Event "*** Titled Tuesday Blitz"]
[Site "Chess.com"]
[Date "2021.02.16"]
[Round "10"]
[White "1g60-1"]
[Black "moventog"]
[Result "0-1"]
[WhiteElo "2104"]
[BlackElo "2320"]
[TimeControl "180+1"]
[EndTime "11:59:12 PST"]
[Termination "moventog won on time"]

1. Nf3 {[%clk 0:03:00.9]} 1... Nf6 {[%clk 0:02:59.1]} 2. b3 {[%clk 0:02:54.7]}
2... g6 {[%clk 0:02:58]} 3. Bb2 {[%clk 0:02:53.9]} 3... Bg7 {[%clk 0:02:58.6]}
4. e3 {[%clk 0:02:53.8]} 4... O-O {[%clk 0:02:57.5]} 5. d4 {[%clk 0:02:53.4]}
5... c5 {[%clk 0:02:57.6]} 6. dxc5 {[%clk 0:02:52.1]} 6... Qa5+ {[%clk 0:02:55]}
7. c3 {[%clk 0:02:52.2]} 7... Qxc5 {[%clk 0:02:55]} 8. Ba3 {[%clk 0:02:52.5]}
8... Qa5 {[%clk 0:02:14.2]} 9. Bxe7 {[%clk 0:02:51.9]} 9... Re8 {[%clk
0:02:14.9]} 10. Bb4 {[%clk 0:02:49.4]} 10... Qc7 {[%clk 0:02:12.2]} 11. Bd3
{[%clk 0:02:43.4]} 11... d5 {[%clk 0:02:10.7]} 12. O-O {[%clk 0:02:40.2]} 12...
Nc6 {[%clk 0:02:10.9]} 13. Ba3 {[%clk 0:02:36.3]} 13... Ne4 {[%clk 0:02:11.1]}
14. Bb2 {[%clk 0:02:35.7]} 14... Bg4 {[%clk 0:02:07]} 15. h3 {[%clk 0:02:34.1]}
15... Bxf3 {[%clk 0:02:06]} 16. Qxf3 {[%clk 0:02:35]} 16... Ne5 {[%clk
0:02:05.9]} 17. Qd1 {[%clk 0:02:27.7]} 17... Rac8 {[%clk 0:02:04.2]} 18. Qc2
{[%clk 0:02:07.4]} 18... Qa5 {[%clk 0:01:45.8]} 19. Bxe4 {[%clk 0:01:56]} 19...
dxe4 {[%clk 0:01:46]} 20. c4 {[%clk 0:01:38.4]} 20... Qb6 {[%clk 0:01:11.5]} 21.
Nc3 {[%clk 0:01:29.7]} 21... Nd3 {[%clk 0:01:09.6]} 22. Nd5 {[%clk 0:01:17.3]}
22... Qd6 {[%clk 0:01:03.3]} 23. Bxg7 {[%clk 0:01:14.9]} 23... Kxg7 {[%clk
0:00:55.6]} 24. Qc3+ {[%clk 0:01:01.6]} 24... f6 {[%clk 0:00:55.8]} 25. Rfd1
{[%clk 0:00:56.8]} 25... Qxd5 {[%clk 0:00:55.6]} 26. Qc2 {[%clk 0:00:32.2]}
26... Qe5 {[%clk 0:00:50.5]} 27. Rab1 {[%clk 0:00:20.5]} 27... b5 {[%clk
0:00:48.3]} 28. Qd2 {[%clk 0:00:13.5]} 28... b4 {[%clk 0:00:46.9]} 29. Qe2
{[%clk 0:00:09.5]} 29... a5 {[%clk 0:00:45.1]} 30. f4 {[%clk 0:00:08.8]} 30...
Qc5 {[%clk 0:00:42.9]} 31. Qg4 {[%clk 0:00:07.6]} 31... f5 {[%clk 0:00:42.3]}
32. Qe2 {[%clk 0:00:07.3]} 32... Rcd8 {[%clk 0:00:36.7]} 33. Rd2 {[%clk
0:00:06.9]} 33... Rd7 {[%clk 0:00:34.9]} 34. Re1 {[%clk 0:00:07]} 34... Red8
{[%clk 0:00:34.9]} 35. Red1 {[%clk 0:00:06.9]} 35... Qe7 {[%clk 0:00:32.8]} 36.
Kh1 {[%clk 0:00:05.6]} 36... Nc5 {[%clk 0:00:31.6]} 37. Rxd7 {[%clk 0:00:05.2]}
37... Rxd7 {[%clk 0:00:32.5]} 38. Rf1 {[%clk 0:00:04.7]} 38... Rd3 {[%clk
0:00:32.1]} 39. Re1 {[%clk 0:00:03.9]} 39... Qf6 {[%clk 0:00:32.2]} 40. g4
{[%clk 0:00:02.7]} 40... Qh4 {[%clk 0:00:21.5]} 0-1

[Event "*** Titled Tuesday Blitz"]
[Site "Chess.com"]
[Date "2021.02.16"]
[Round "10"]
[White "AlexOstrovskiy"]
[Black "maxip32"]
[Result "1-0"]
[WhiteElo "2752"]
[BlackElo "2536"]
[TimeControl "180+1"]
[EndTime "11:59:14 PST"]
[Termination "AlexOstrovskiy won on time"]

1. d4 {[%clk 0:03:00.9]} 1... Nf6 {[%clk 0:02:58.4]} 2. Bf4 {[%clk 0:03:00.1]}
2... g6 {[%clk 0:02:57.8]} 3. Nc3 {[%clk 0:03:00]} 3... d5 {[%clk 0:02:55.9]} 4.
e3 {[%clk 0:03:00.2]} 4... Bg7 {[%clk 0:02:55.3]} 5. h4 {[%clk 0:03:00.2]} 5...
h6 {[%clk 0:02:54.6]} 6. Nf3 {[%clk 0:02:59.3]} 6... Bg4 {[%clk 0:02:54.3]} 7.
Qd2 {[%clk 0:02:58.8]} 7... c6 {[%clk 0:02:51.1]} 8. Ne5 {[%clk 0:02:58.2]} 8...
Nbd7 {[%clk 0:02:51]} 9. f3 {[%clk 0:02:55.8]} 9... Be6 {[%clk 0:02:48.3]} 10.
O-O-O {[%clk 0:02:53.6]} 10... Qa5 {[%clk 0:02:40]} 11. Kb1 {[%clk 0:02:53.6]}
11... Nxe5 {[%clk 0:02:37.3]} 12. Bxe5 {[%clk 0:02:51.5]} 12... h5 {[%clk
0:02:17]} 13. Be2 {[%clk 0:02:35.2]} 13... Qd8 {[%clk 0:01:22.4]} 14. Rdg1
{[%clk 0:02:22.2]} 14... Qd7 {[%clk 0:01:18.1]} 15. g4 {[%clk 0:02:12.9]} 15...
Kf8 {[%clk 0:01:04.8]} 16. Qd1 {[%clk 0:01:58.7]} 16... Ne8 {[%clk 0:00:59.9]}
17. gxh5 {[%clk 0:01:56.6]} 17... Bxe5 {[%clk 0:00:57.6]} 18. dxe5 {[%clk
0:01:56.2]} 18... Rxh5 {[%clk 0:00:34.6]} 19. f4 {[%clk 0:01:56.4]} 19... Rh8
{[%clk 0:00:33]} 20. h5 {[%clk 0:01:53.9]} 20... Kg7 {[%clk 0:00:17.6]} 21. hxg6
{[%clk 0:01:51.6]} 21... Rxh1 {[%clk 0:00:15.7]} 22. Rxh1 {[%clk 0:01:42]} 22...
fxg6 {[%clk 0:00:16.6]} 23. Bd3 {[%clk 0:01:14.3]} 23... Bf5 {[%clk 0:00:16.5]}
24. Ne2 {[%clk 0:01:14.9]} 24... Bxd3 {[%clk 0:00:15.8]} 25. cxd3 {[%clk
0:01:11.3]} 25... Nc7 {[%clk 0:00:15.7]} 26. Ng3 {[%clk 0:01:01.1]} 26... Rh8
{[%clk 0:00:14.1]} 27. Rg1 {[%clk 0:00:59.7]} 27... Qh3 {[%clk 0:00:12]} 28. f5
{[%clk 0:00:55.2]} 28... gxf5 {[%clk 0:00:10.5]} 29. Nxf5+ {[%clk 0:00:56.1]}
29... Kf8 {[%clk 0:00:10.4]} 30. Ng3 {[%clk 0:00:35]} 30... Ne6 {[%clk
0:00:09.9]} 31. Rh1 {[%clk 0:00:33.5]} 31... Qxg3 {[%clk 0:00:08]} 32. Rxh8+
{[%clk 0:00:33.1]} 32... Kg7 {[%clk 0:00:08.2]} 33. Qh1 {[%clk 0:00:17.9]} 33...
Qxe5 {[%clk 0:00:01.1]} 34. Qh7+ {[%clk 0:00:10.6]} 34... Kf6 {[%clk 0:00:01.5]}
35. Rg8 {[%clk 0:00:07.8]} 1-0

[Event "*** Titled Tuesday Blitz"]
[Site "Chess.com"]
[Date "2021.02.16"]
[Round "10"]
[White "HouseOfDurin"]
[Black "ChelsieMonica"]
[Result "0-1"]
[WhiteElo "2158"]
[BlackElo "2332"]
[TimeControl "180+1"]
[EndTime "11:59:14 PST"]
[Termination "ChelsieMonica won by resignation"]

1. d4 {[%clk 0:03:00.9]} 1... Nf6 {[%clk 0:02:59.2]} 2. Bg5 {[%clk 0:03:01.3]}
2... c5 {[%clk 0:02:58]} 3. Bxf6 {[%clk 0:03:01.3]} 3... gxf6 {[%clk 0:02:57.4]}
4. c3 {[%clk 0:03:01.9]} 4... cxd4 {[%clk 0:02:57.4]} 5. cxd4 {[%clk 0:03:02.8]}
5... d5 {[%clk 0:02:58.3]} 6. Nc3 {[%clk 0:03:00.2]} 6... Nc6 {[%clk 0:02:59.2]}
7. a3 {[%clk 0:02:59.7]} 7... Bg7 {[%clk 0:02:59.5]} 8. e3 {[%clk 0:02:59.3]}
8... O-O {[%clk 0:02:59.4]} 9. g3 {[%clk 0:02:59]} 9... f5 {[%clk 0:02:59.9]}
10. Bg2 {[%clk 0:02:58.6]} 10... e6 {[%clk 0:02:59.9]} 11. Nge2 {[%clk
0:02:59.1]} 11... b6 {[%clk 0:02:59.2]} 12. O-O {[%clk 0:02:58.4]} 12... Ba6
{[%clk 0:02:59.3]} 13. b4 {[%clk 0:02:57.8]} 13... Bc4 {[%clk 0:02:58.4]} 14.
Na4 {[%clk 0:02:41.3]} 14... Rc8 {[%clk 0:02:50.2]} 15. Qd2 {[%clk 0:02:39]}
15... Qd7 {[%clk 0:02:43.4]} 16. Rfc1 {[%clk 0:02:36.9]} 16... Nxd4 {[%clk
0:02:39.2]} 17. Nxd4 {[%clk 0:02:26.4]} 17... Qxa4 {[%clk 0:02:38.1]} 18. Bf1
{[%clk 0:02:17.4]} 18... Rc7 {[%clk 0:02:28.6]} 19. Rc3 {[%clk 0:01:57.7]} 19...
Rfc8 {[%clk 0:02:25.8]} 20. Rac1 {[%clk 0:01:57.1]} 20... Be5 {[%clk 0:02:15.7]}
21. f4 {[%clk 0:01:52.2]} 21... Bf6 {[%clk 0:02:12.4]} 22. h3 {[%clk 0:00:59.8]}
22... Qa6 {[%clk 0:02:02.2]} 23. Bxc4 {[%clk 0:00:50.3]} 23... Rxc4 {[%clk
0:01:58.1]} 24. Rxc4 {[%clk 0:00:47.7]} 24... Rxc4 {[%clk 0:01:57.1]} 25. Rc3
{[%clk 0:00:18.4]} 25... Qc8 {[%clk 0:01:51.9]} 26. Rxc4 {[%clk 0:00:17.9]}
26... Qxc4 {[%clk 0:01:52.7]} 27. Kf2 {[%clk 0:00:17.6]} 27... Bxd4 {[%clk
0:01:49]} 28. exd4 {[%clk 0:00:17.5]} 28... Qb3 {[%clk 0:01:48.1]} 29. Qe3
{[%clk 0:00:15.9]} 29... Qd1 {[%clk 0:01:44.3]} 30. Kg2 {[%clk 0:00:13.9]} 30...
Qb1 {[%clk 0:01:38.3]} 31. Qd2 {[%clk 0:00:11.8]} 31... Qe4+ {[%clk 0:01:27.7]}
32. Kf2 {[%clk 0:00:11.7]} 32... Qh1 {[%clk 0:01:26.4]} 33. h4 {[%clk
0:00:11.1]} 33... Qh2+ {[%clk 0:01:25.6]} 34. Ke3 {[%clk 0:00:11.2]} 34... Qxg3+
{[%clk 0:01:24.9]} 35. Ke2 {[%clk 0:00:11.8]} 35... Qxh4 {[%clk 0:01:02.2]} 36.
Qc3 {[%clk 0:00:11.3]} 36... Qxf4 {[%clk 0:01:00.1]} 37. Qc8+ {[%clk 0:00:10.7]}
37... Kg7 {[%clk 0:01:00.5]} 38. Qd8 {[%clk 0:00:09.6]} 38... h6 {[%clk
0:00:55.2]} 39. Kd3 {[%clk 0:00:08.4]} 39... Qe4+ {[%clk 0:00:54.4]} 40. Kc3
{[%clk 0:00:07.7]} 40... Qe3+ {[%clk 0:00:52.6]} 41. Kc2 {[%clk 0:00:06.4]}
41... Qxd4 {[%clk 0:00:50.7]} 42. Kb3 {[%clk 0:00:05]} 42... Qd3+ {[%clk
0:00:50.2]} 43. Kb2 {[%clk 0:00:04.9]} 43... d4 {[%clk 0:00:48.6]} 44. Qd6
{[%clk 0:00:04.2]} 44... Qc3+ {[%clk 0:00:48.1]} 45. Ka2 {[%clk 0:00:04.6]}
45... d3 {[%clk 0:00:45.7]} 46. Qg3+ {[%clk 0:00:04.5]} 46... Kh7 {[%clk
0:00:45]} 47. Qc7 {[%clk 0:00:02.9]} 47... Qxc7 {[%clk 0:00:44.4]} 0-1

[Event "*** Titled Tuesday Blitz"]
[Site "Chess.com"]
[Date "2021.02.16"]
[Round "10"]
[White "JiiHart"]
[Black "Chamal_Gedgafov"]
[Result "0-1"]
[WhiteElo "2112"]
[BlackElo "2323"]
[TimeControl "180+1"]
[EndTime "11:59:14 PST"]
[Termination "Chamal_Gedgafov won by resignation"]

1. e4 {[%clk 0:03:00.9]} 1... e6 {[%clk 0:02:59.5]} 2. d4 {[%clk 0:03:00.4]}
2... d5 {[%clk 0:02:59.8]} 3. Nc3 {[%clk 0:03:00.9]} 3... Bb4 {[%clk 0:02:58.7]}
4. e5 {[%clk 0:03:00.8]} 4... c5 {[%clk 0:02:55.8]} 5. a3 {[%clk 0:03:01]} 5...
Bxc3+ {[%clk 0:02:56.3]} 6. bxc3 {[%clk 0:03:01.1]} 6... Ne7 {[%clk 0:02:57.2]}
7. Qg4 {[%clk 0:03:00.7]} 7... Qc7 {[%clk 0:02:56.9]} 8. Qxg7 {[%clk 0:03:00.3]}
8... Rg8 {[%clk 0:02:57]} 9. Qxh7 {[%clk 0:02:59.9]} 9... cxd4 {[%clk
0:02:57.9]} 10. Ne2 {[%clk 0:02:59.4]} 10... Nbc6 {[%clk 0:02:58.8]} 11. f4
{[%clk 0:02:59.1]} 11... Bd7 {[%clk 0:02:58]} 12. Qd3 {[%clk 0:02:58.6]} 12...
dxc3 {[%clk 0:02:57.9]} 13. Rb1 {[%clk 0:02:57.9]} 13... d4 {[%clk 0:02:54.6]}
14. Nxd4 {[%clk 0:02:39.2]} 14... Nxd4 {[%clk 0:02:53.9]} 15. Qxd4 {[%clk
0:02:39.3]} 15... Nd5 {[%clk 0:02:49]} 16. Rg1 {[%clk 0:02:23.1]} 16... Bc6
{[%clk 0:02:48.1]} 17. g4 {[%clk 0:02:09.7]} 17... b6 {[%clk 0:02:40.2]} 18. Ba6
{[%clk 0:01:53.8]} 18... Rd8 {[%clk 0:02:33.6]} 19. Qf2 {[%clk 0:01:52.5]} 19...
Qd7 {[%clk 0:02:15.7]} 20. Bd3 {[%clk 0:01:32.1]} 20... Ba4 {[%clk 0:02:05.3]}
21. h4 {[%clk 0:01:22.6]} 21... Ne7 {[%clk 0:02:04.7]} 22. h5 {[%clk 0:01:14]}
22... Nc6 {[%clk 0:02:04.2]} 23. Be3 {[%clk 0:01:08.1]} 23... Nd4 {[%clk
0:01:57.4]} 24. h6 {[%clk 0:00:54.3]} 24... Qd5 {[%clk 0:01:42.9]} 25. Bxd4
{[%clk 0:00:47.6]} 25... Qxd4 {[%clk 0:01:41.9]} 26. h7 {[%clk 0:00:37.8]} 26...
Rh8 {[%clk 0:01:35.8]} 27. Qxd4 {[%clk 0:00:26.6]} 27... Rxd4 {[%clk 0:01:36.6]}
28. f5 {[%clk 0:00:26.8]} 28... Rxh7 {[%clk 0:01:30.5]} 29. fxe6 {[%clk
0:00:19.7]} 29... Rh2 {[%clk 0:01:29.5]} 30. exf7+ {[%clk 0:00:18.9]} 30... Kxf7
{[%clk 0:01:27.1]} 31. g5 {[%clk 0:00:18.3]} 31... Rd5 {[%clk 0:01:07.6]} 32.
g6+ {[%clk 0:00:17.6]} 32... Kg7 {[%clk 0:01:07]} 33. Rb4 {[%clk 0:00:12.2]}
33... Rxe5+ {[%clk 0:01:04.6]} 34. Re4 {[%clk 0:00:10.1]} 34... Rxe4+ {[%clk
0:01:01.1]} 35. Bxe4 {[%clk 0:00:11]} 35... Bxc2 {[%clk 0:01:01]} 36. Rg4 {[%clk
0:00:07]} 36... Bxe4 {[%clk 0:00:47.9]} 37. Rxe4 {[%clk 0:00:07.9]} 37... c2
{[%clk 0:00:46.2]} 38. Rc4 {[%clk 0:00:07.9]} 38... Kxg6 {[%clk 0:00:44.7]} 39.
Rc7 {[%clk 0:00:06.5]} 39... Kf5 {[%clk 0:00:43.6]} 40. a4 {[%clk 0:00:02.9]}
40... Ke4 {[%clk 0:00:42.6]} 41. Rc3 {[%clk 0:00:01.9]} 41... Kd4 {[%clk
0:00:41.3]} 42. Rc7 {[%clk 0:00:02.7]} 42... Kd3 {[%clk 0:00:40.7]} 43. Rc8
{[%clk 0:00:02.9]} 43... Rh1+ {[%clk 0:00:39.3]} 44. Kf2 {[%clk 0:00:03.2]}
44... c1=Q {[%clk 0:00:39.6]} 0-1